Cogmind - Beta 10.1 @@@ ROGUE MODE // 2021.07.15 @ 00:30:38 Player: W-ALTER Result: Destroyed by S-10 Pest with Light Assault Rifle Performance ------------- Evolutions (0) 0 Regions Visited (4) 800 Robots Destroyed (13) 65 Value Destroyed (119) 119 Prototype IDs (23) 460 Alien Tech Used (0) 0 Bonus (300) 300 TOTAL SCORE: 1744 Bonus ------- Aligned with FarCom 300 Cogmind --------- Core Integrity 0/250 Matter 300/300 Energy 100/100 System Corruption 0% Temperature Cool (0) Movement Core (450) Ox8 Location -9/Mines Parts ------- > --- POWER (1) -------- (None) > --- PROPULSION (2) --- (None) > --- UTILITY (2) ------ Large Storage Unit Improved Medium Armor Plating > --- WEAPON (2) ------- Great Axe > --- INVENTORY (10) --- Large Storage Unit Seismic Analyzer Advanced Terrain Scan Processor Shield Generator Improved Shield Generator Assault Rifle Heavy Hammer Heavy Hammer Heavy Hammer Peak State ------------ > --- POWER ------------ Light Ion Engine > --- PROPULSION ------- Compact Wheel > --- UTILITY ---------- Large Storage Unit Cloak of Protection > --- WEAPON ----------- Plasma Cannon Great Axe > --- INVENTORY -------- Large Storage Unit Seismic Analyzer Advanced Terrain Scan Processor Improved Medium Armor Plating Shield Generator Improved Shield Generator Assault Rifle Heavy Hammer Heavy Hammer Heavy Hammer [Rating: 21] Favorites ----------- Power Ion Engine Engine Ion Engine Propulsion Compact Wheel Wheel Compact Wheel Utility Small Storage Unit Device Cloak of Protection Storage Small Storage Unit Protection Light Armor Plating Weapon Assault Rifle Energy Cannon Plasma Cannon Ballistic Gun Assault Rifle Impact Weapon Heavy Hammer Slashing Weapon Great Axe Build | -11 -10 -10 -10 -9 ------- Run | Scr Mat Min Exi Min Slots Evolved . | . . . . . Power . | . . . . . Propulsion . | . . . . . Utility . | . . . . . Weapon . | . . . . . Parts Attached 17 | 6 3 . 4 4 Power 2 | 1 . . . 1 Engine 2 | 1 . . . 1 Core . | . . . . . Reactor . | . . . . . Propulsion 2 | 2 . . . . Treads . | . . . . . Leg . | . . . . . Wheel 2 | 2 . . . . Hover . | . . . . . Flight . | . . . . . Utility 6 | 1 2 . 2 1 Device 2 | . 1 . 1 . Storage 2 | 1 . . 1 . Processor . | . . . . . Hackware . | . . . . . Protection 2 | . 1 . . 1 Artifact . | . . . . . Weapon 7 | 2 1 . 2 2 Energy Gun . | . . . . . Energy Cannon 1 | . . . . 1 Ballistic Gun 2 | 2 . . . . Ballistic Cannon . | . . . . . Launcher . | . . . . . Special Weapon . | . . . . . Impact Weapon 2 | . 1 . 1 . Slashing Weapon 2 | . . . 1 1 Piercing Weapon . | . . . . . Special Melee Weapon . | . . . . . Unidentified Prototypes . | . . . . . Parts Lost 6 | . 3 . . 3 Power 2 | . 1 . . 1 Propulsion 2 | . 1 . . 1 Utility 1 | . 1 . . . Weapon 1 | . . . . 1 Highest Loss Streak 3 | . 3 . . 3 Average Slot Usage (%) 74 | . 94 71 70 72 Engine 2 | . 12 . . 3 Wheel 15 | . 26 14 14 13 Device 11 | . 1 14 13 13 Storage 14 | . 14 14 14 14 Protection 1 | . 10 . . . Energy Cannon 3 | . . . . 11 Ballistic Gun 10 | . 17 14 14 2 Impact Weapon 8 | . 10 14 13 2 Slashing Weapon 4 | . . . . 12 Naked Turns . | . . . . . Heaviest Build 38 | 13 17 11 29 38 Greatest Support 26 | 26 26 16 16 16 Greatest Overweight (x) 8 | . 1 . 1 8 Average Overweight (x) . | . . . . 1 Largest Inventory Capacity 10 | 6 6 6 10 10 Average Capacity 7 | 5 6 6 6 10 Most Carried 10 | 4 6 5 7 10 Average Carried 6 | 1 4 5 5 9 Final Capacity 10 | 6 6 6 10 10 Final Carried 9 | 1 5 5 7 9 Class Distribution -------------------- 100% | Mutant Dominant Class ---------------- Mutant | -10/Materials Mutant | -10/Mines Mutant | -10/Exiles Mutant | -9/Mines Resources | -11 -10 -10 -10 -9 ----------- Run | Scr Mat Min Exi Min Matter Collected 375 | 235 20 48 . 72 Remotely . | . . . . . Salvage Created 484 | 116 20 48 . 300 Parts 17 | 5 2 . . 10 Haulers Intercepted . | . . . . . Recyclers Shooed 1 | . . . . 1 Parts Field Recycled . | . . . . . Retrieved Matter . | . . . . . Parts Self-Destructed . | . . . . . Prevented . | . . . . . Kills | -11 -10 -10 -10 -9 ------- Run | Scr Mat Min Exi Min Combat Hostiles Destroyed 3 | . 1 . . 2 Melee 2 | . . . . 2 Guns 1 | . 1 . . . Classes Destroyed 5 | 2 1 . . 2 Builder 2 | . . . . 2 Tunneler 5 | 1 . 3 . 1 Recycler 3 | 1 . . . 2 Swarmer 2 | . 1 . . 1 Brawler 1 | . . . . 1 Best Kill Streak 2 | 1 1 2 . 2 Combat Bots Only 2 | . 1 . . 2 Max Kills in Single Turn 1 | 1 1 1 . 1 Gunslinging . | . . . . . Exploded . | . . . . . Melee 1 | . . . . 1 Uniques/NPCs Destroyed . | . . . . . Combat | -11 -10 -10 -10 -9 -------- Run | Scr Mat Min Exi Min Damage Taken 1064 | . 401 10 . 653 Core 258 | . 68 . . 190 Absorbed by Shields 28 | . 24 4 . . Core Remaining (%) 100 | 100 . . . . Volleys Fired 6 | 4 2 . . . Largest 2 | 2 1 . . . Hottest 40 | 40 20 . . . Shots Fired 10 | 8 2 . . . Gun 10 | 8 2 . . . Cannon . | . . . . . Launcher . | . . . . . Special . | . . . . . Kinetic 10 | 8 2 . . . Thermal . | . . . . . Explosive . | . . . . . Electromagnetic . | . . . . . Robot Hit Streak 3 | 2 3 . . . Robot Miss Streak 1 | 1 1 . . . Penetration Max . | . . . . . Secondary Targets . | . . . . . Shots Hit Robots 33 | 5 2 4 . 22 Core Hits 11 | 3 1 . . 7 Critical Hits 2 | . . . . 2 Critical Kills . | . . . . . Critical Parts Destroyed 2 | . . . . 2 Melee Attacks 42 | . 6 4 6 26 Impact 12 | . 6 4 . 2 Slashing 30 | . . . 6 24 Piercing . | . . . . . Sneak Attacks 13 | . . 4 . 9 Combat Hostiles . | . . . . . Follow-up Attacks . | . . . . . Damage Inflicted 1943 | 45 27 311 . 1560 Guns 60 | 45 15 . . . Cannons . | . . . . . Explosions . | . . . . . Melee 1883 | . 12 311 . 1560 Ramming . | . . . . . Kinetic 60 | 45 15 . . . Thermal . | . . . . . Explosive . | . . . . . Electromagnetic . | . . . . . Impact 396 | . 12 311 . 73 Slashing 1487 | . . . . 1487 Piercing . | . . . . . Highest Corruption . | . . . . . Average Corruption . | . . . . . Corruption Purged . | . . . . . Overload Shots . | . . . . . Overflow Damage 482 | . . 172 . 310 Projectiles . | . . . . . Explosions . | . . . . . Melee 482 | . . 172 . 310 Knockbacks 6 | . 1 4 . 1 Impact 6 | . 1 4 . 1 Kinetic . | . . . . . Secondary . | . . . . . Self-Inflicted Damage . | . . . . . Shots . | . . . . . Rammed . | . . . . . Targets Rammed . | . . . . . Kicked . | . . . . . Crushed . | . . . . . Highest Temperature . | . . . . . Average Temperature . | . . . . . Received Heat Transfer 176 | . 50 6 . 120 Siege Activations . | . . . . . Robots Corrupted . | . . . . . Combat Hostiles . | . . . . . Parts Fried 7 | . . 7 . . Impact Corruptions 6 | . . 5 . 1 Robots Melted . | . . . . . Combat Hostiles . | . . . . . Parts Melted . | . . . . . Heat Transferred . | . . . . . Parts Sabotaged . | . . . . . Parts Stolen . | . . . . . Parts Stripped . | . . . . . Power Chain Reactions . | . . . . . Missiles Intercepted . | . . . . . Alert | -11 -10 -10 -10 -9 ------- Run | Scr Mat Min Exi Min Peak Influence 64 | 10 64 28 . 50 Initial 13 | . 6 13 . . Average 12 | 3 15 23 . 10 Maximum Alert Level . | . . . . . Low Security (%) 100 | 100 100 100 . 100 Level 1 . | . . . . . Level 2 . | . . . . . Level 3 . | . . . . . Level 4 . | . . . . . Level 5 . | . . . . . High Security . | . . . . . Max Security . | . . . . . Squads Dispatched . | . . . . . Investigation . | . . . . . Extermination . | . . . . . Reinforcement . | . . . . . Assault . | . . . . . Garrison . | . . . . . Intercept . | . . . . . Construction Impeded . | . . . . . Haulers Reinforced . | . . . . . Stealth | -11 -10 -10 -10 -9 --------- Run | Scr Mat Min Exi Min Distress Signals 2 | . 2 . . . Communications Jammed . | . . . . . Distress Signals . | . . . . . Times Spotted 16 | . 7 2 . 7 Peak Tracking Total 7 | . 7 2 . 7 Tactical Retreats 2 | . . 1 . 1 Traps | -11 -10 -10 -10 -9 ------- Run | Scr Mat Min Exi Min Traps Triggered 1 | . . . . 1 Indirectly . | . . . . . Trap Hack Attempts . | . . . . . Triggered . | . . . . . Disarmed . | . . . . . Reprogrammed . | . . . . . Reused . | . . . . . Traps Extracted . | . . . . . Installed . | . . . . . Triggered . | . . . . . Machines | -11 -10 -10 -10 -9 ---------- Run | Scr Mat Min Exi Min Machines Disabled . | . . . . . Max in Single Turn . | . . . . . Machines Sabotaged . | . . . . . Garrisons Compromised . | . . . . . Overloaded Fab Kills . | . . . . . Fab Network Shutdowns . | . . . . . Hacking | -11 -10 -10 -10 -9 --------- Run | Scr Mat Min Exi Min Machines Accessed 5 | . 1 . 3 1 Terminals 1 | . 1 . . . Fabricators . | . . . . . Repair Stations . | . . . . . Recycling Units . | . . . . . Scanalyzers . | . . . . . Garrison Access . | . . . . . Total Hacks 9 | . 4 . 4 1 Successful 7 | . 2 . 4 1 Failed 2 | . 2 . . . Catastrophic 1 | . 1 . . . Database Lockouts . | . . . . . Manual 6 | . 3 . 2 1 Terminals 4 | . 4 . . . Fabricators . | . . . . . Repair Stations . | . . . . . Recycling Units . | . . . . . Scanalyzers . | . . . . . Garrison Access . | . . . . . Terminal Hacks 6 | . 1 . 4 1 Record 3 | . . . 3 . Open Door 1 | . . . . 1 Zone Layout 1 | . 1 . . . EX-Prototype ID Bank 1 | . . . 1 . Fabricator Hacks . | . . . . . Repair Station Hacks . | . . . . . Recycling Unit Hacks . | . . . . . Scanalyzer . | . . . . . Garrison Access Hacks . | . . . . . Unauthorized Hacks 1 | . 1 . . . Terminals 1 | . 1 . . . Detonate 1 | . 1 . . . Fabricators . | . . . . . Repair Stations . | . . . . . Recycling Units . | . . . . . Scanalyzers . | . . . . . Garrison Access . | . . . . . Data Cores Recovered . | . . . . . Used . | . . . . . Hacking Detections . | . . . . . Full Trace Events . | . . . . . Feedback Events . | . . . . . Feedback Blocked . | . . . . . Robot Schematics Acquired . | . . . . . Robots Built . | . . . . . Matter . | . . . . . Time . | . . . . . Total Robot Build Rating . | . . . . . Part Schematics Acquired . | . . . . . Parts Built . | . . . . . Matter . | . . . . . Time . | . . . . . Total Part Build Rating . | . . . . . Parts Repaired . | . . . . . Time . | . . . . . Parts Recycled . | . . . . . Recycled Matter . | . . . . . Retrieved Matter . | . . . . . Retrieved Components . | . . . . . Parts Scanalyzed . | . . . . . Part Schematics Acquired . | . . . . . Parts Damaged . | . . . . . Bothacking | -11 -10 -10 -10 -9 ------------ Run | Scr Mat Min Exi Min Used RIF Installer . | . . . . . Robots Hacked . | . . . . . Non-combat . | . . . . . Combat . | . . . . . Robot Hacks Applied . | . . . . . Relay Couplers Released . | . . . . . Robots Rewired . | . . . . . Allies Hacked . | . . . . . Hacks Repelled . | . . . . . Allies | -11 -10 -10 -10 -9 -------- Run | Scr Mat Min Exi Min Total Allies . | . . . . . Largest Group . | . . . . . Highest-Rated Group . | . . . . . Highest-Rated Ally . | . . . . . Total Orders . | . . . . . Ally Attacks . | . . . . . Total Damage . | . . . . . Kills . | . . . . . Allies Corrupted . | . . . . . Allies Melted . | . . . . . Intel | -11 -10 -10 -10 -9 ------- Run | Scr Mat Min Exi Min Robot Analysis Total . | . . . . . Derelict Logs Recovered . | . . . . . Drone Launches . | . . . . . Drone Recoveries . | . . . . . Exploration | -11 -10 -10 -10 -9 ------------- Run | Scr Mat Min Exi Min Turns Passed 1057 | 60 150 109 383 355 Spaces Moved 842 | 42 129 98 344 229 Core 7 | 6 . . . 1 Treads . | . . . . . Legs . | . . . . . Wheels 835 | 36 129 98 344 228 Hover . | . . . . . Flight . | . . . . . Fastest Speed 50 | 50 90 100 100 110 Average Speed 104 | 85 91 100 104 119 Slowest Speed 450 | 100 110 100 110 450 Overloaded Moves . | . . . . . Propulsion Burnouts . | . . . . . Robots Hopped . | . . . . . Cave-ins Triggered . | . . . . . Exploration Rate (%) 28 | 4 27 23 62 28 Regions Visited 4 Branch Regions 3 Pre-discovered Areas . | . . . . . Known Exits Taken . | . . . . . Unknown Exits Taken 4 | 1 1 1 1 . Scrap Searched . | . . . . . Spaces Dug . | . . . . . Terrain Destroyed . | . . . . . Melee . | . . . . . Projectile . | . . . . . AOE . | . . . . . Terrain Rammed . | . . . . . Walls Destroyed . | . . . . . Machines Disabled . | . . . . . Actions | -11 -10 -10 -10 -9 --------- Run | Scr Mat Min Exi Min Total 935 | 57 147 101 363 267 Wait 1 | . . . . 1 Move 838 | 41 128 97 343 229 Hop . | . . . . . Pick Up 22 | 6 7 . 5 4 Fast Attach 4 | 1 . . 1 2 Attach 12 | 5 3 . 2 2 Detach . | . . . . . Swap 1 | . . . 1 . Drop 9 | . 1 . 5 3 Fire 6 | 4 2 . . . Melee 42 | . 6 4 6 26 Ram . | . . . . . Kick . | . . . . . Crush . | . . . . . Escape Stasis . | . . . . . Rewire . | . . . . . Trap . | . . . . . Miscellaneous . | . . . . . Route ------- -11/Scrapyard -10/Materials -10/Mines -10/Exiles -9/Mines History --------- Turn | Location | Event 24 | -11/Scrapyard | Discovered new exit (range 13) 61 | -11/Scrapyard | Entered Materials 184 | -10/Materials | Discovered new exit (range 9) 211 | -10/Materials | Entered Mines 227 | -10/Mines | Lost 3 parts (1p1n1u) 313 | -10/Mines | Deemed a non-threat by the Exiles lab entrance 314 | -10/Mines | Build established: Mutant 314 | -10/Mines | Discovered new exit (range 5) 320 | -10/Mines | Entered Exiles 347 | -10/Exiles | Met 8R-AWN 363 | -10/Exiles | Met EX-HEX 403 | -10/Exiles | Met EX-BIN 416 | -10/Exiles | Aligned with FarCom system 417 | -10/Exiles | Given EX-Vault access code 450 | -10/Exiles | Opened EX-Vault 473 | -10/Exiles | Warned to stay clear of 0b10 Research branches 512 | -10/Exiles | Found Longsword +1 528 | -10/Exiles | Found Cloak of Protection 597 | -10/Exiles | Met EX-DEC 687 | -10/Exiles | Discovered new exit (range 14) 703 | -10/Exiles | Left Exiles lab with Cloak of Protection 703 | -10/Exiles | Entered Mines 749 | -9/Mines | Met a Derelict who couldn't figure out how to use a Trap Extractor 1043 | -9/Mines | Core integrity fell below 50% 1052 | -9/Mines | Core integrity fell below 20% 1058 | -9/Mines | Destroyed by S-10 Pest with Light Assault Rifle Last Messages --------------- 00972_ U-05 Engineer builds a Wall. 00976_ Sneak attack on U-05 Engineer. 00976_ U-05 Engineer destroyed. 00980_ Acquired 10 matter. 00990_ R-06 Scavenger collects Terrain Scan Processor. 01007_ K-01 Serf collects debris. 01029_ G-34 Mercenary Sml. Laser severed. 01032_ K-01 Serf collects debris. 01034_ Com. Wheel destroyed. 01035_ K-01 Serf collects debris. 01040_ Dropped Cloak of Protection. 01042_ K-01 Serf collects debris. 01042_ Lgt. Ion Engine destroyed. 01046_ K-01 Serf collects debris. 01047_ Plasma Cannon destroyed. 01047_ B-36 Bruiser destroyed. 01050_ K-01 Serf collects debris. 01055_ Destroyed Flight Unit. 01056_ K-01 Serf collects debris. 01057_ S-10 Pest destroyed. Map ----- +----------------------------------------------------+ | ?????????????????????????????????????????? | | ?????????????????????????????????????????? | | ?????????????????????????????????????????? | | ?????????????????????????????????????????? | | ?????????????????????????????????????????? | | ?????????????????????????????????????????? | | ?????????????????????????????????????????? | | ?????????????????????????????????????????? | | ?????????????????????????????????????????? | | ?????????????????????????????????????????? | | ?????????????????????????????????????????? | | ?????????????????????????????????????????? | | ??????????????????????????????????????##?? | | ????????????????????????????????????### ## | | ????????????????????????????????????# %! | | ????????????????????????????????????# | | ?????????????????????????##?????????# | | ???????????????#####????? ?????????## # | | ??????????????## #????? ???g??????### # | | ?????????###### #????? ???????######=# | | ????????## #????" ???????# [%/# | | ??????### #????" ???????# ####!# | | ?????## #????" ???????# #??# # | | ?????# / #???? ???????# #??# # | | ?????# %!#????# #????#### #??# # | | ?????## @[##???# #???? ## #?## # | | ??????#### == ##??# #????# ## ### | | ?????????## g sss ##?# #????# ## ## | | ??????????## ### ###### ## # | | ???????????## k % % | | ????????????## | | ?????????????#### ################# | | ????????????????# ##???????????????### | | ????????????????# #??????????????????## | | ????????????????# #???????????????????# | | ????????????????# #???????????????????### | | ????????????????# #?????????????????????? | | ????????????????# ?????????????????????? | | ????????????????#C ?????????????????????? | | ???????????????? ?????????????????????? | | ???????????????? ?????????????????????? | | ???????????????? ???????????????????????? | | ??????????????C??????????????????????????? | | ?????????????C???????????????????????????? | | ?????????????????????????????????????????? | | ?????????????????????????????????????????? | | ?????????????????????????????????????????? | | ?????????????????????????????????????????? | | ?????????????????????????????????????????? | | ?????????????????????????????????????????? | +----------------------------------------------------+ Best States ------------- Heat Dissipation 25 Energy Generation 10 Energy Capacity 250 Matter Stores 300 Matter Capacity 300 Sight Range 16 Terrain Scan Density 10 Cloak Strength 5 Armor Coverage 225 Evasion (%) 50 Item Schematics ----------------- None Robot Schematics ------------------ None Fabricated ------------ Nothing Alien Tech Used ----------------- None Achievements -------------- True Hacker Challenges ------------ None Game ------ Seed MetafieldPotentialMultirail Manual? 0 Play Time 00:13:16 Cumulative 7.5 hours Start 2021.07.15 @ 00:17:34 End 2021.07.15 @ 00:30:38 Sessions 1 Manual Loads 0 Difficulty Rogue Special Mode None Game No. 19 Rogue 19 Adventurer 0 Explorer 0 Win Type - Total 0 Types 0/0/0/0/0/0/0/0/0 Lore% 19 Gallery% 13 Achievement% 16 Wizard Run 0 Options --------- ASCII 0 Keyboard 0 Movement Mouse Keybinds 0 Fullscreen 1 Font 12/Smallcaps Map View 83x54 Tactical HUD 1 Map Filters NONE Filters NONE Steam X RUN: 8781259f-9438-4112-82d3-7d0e7728dec4